[Event "Late-Titled-Tuesday-Blitz-May-28-2024"]
[Site "Chess.com"]
[Date "2024.05.28"]
[Round "10"]
[White "Romadk"]
[Black "IngOscarArdila"]
[Result "0-1"]
[WhiteElo "2452"]
[BlackElo "2313"]
[TimeControl "180+1"]
[EndTime "15:55:35 PDT"]
[Termination "IngOscarArdila won by resignation"]

1. d4 {[%clk 0:03:00.9]} 1... Nf6 {[%clk 0:02:55.8]} 2. Nf3 {[%clk 0:03:01.1]}
2... e6 {[%clk 0:02:54]} 3. g3 {[%clk 0:03:01.3]} 3... Be7 {[%clk 0:02:54.5]} 4.
Bg2 {[%clk 0:03:01.7]} 4... d6 {[%clk 0:02:55.3]} 5. O-O {[%clk 0:03:00.8]} 5...
O-O {[%clk 0:02:56.2]} 6. c4 {[%clk 0:03:01]} 6... Nbd7 {[%clk 0:02:57]} 7. Nc3
{[%clk 0:03:00.6]} 7... c6 {[%clk 0:02:57.6]} 8. e4 {[%clk 0:02:58.9]} 8... Qc7
{[%clk 0:02:55.9]} 9. Re1 {[%clk 0:02:55.9]} 9... e5 {[%clk 0:02:56.4]} 10. h3
{[%clk 0:02:53.4]} 10... a5 {[%clk 0:02:55.2]} 11. Be3 {[%clk 0:02:52.4]} 11...
Rd8 {[%clk 0:02:55.4]} 12. Qc2 {[%clk 0:02:51.7]} 12... Nf8 {[%clk 0:02:54.2]}
13. Rad1 {[%clk 0:02:50.2]} 13... Be6 {[%clk 0:02:53.7]} 14. d5 {[%clk
0:02:48.3]} 14... cxd5 {[%clk 0:02:53.7]} 15. cxd5 {[%clk 0:02:37.7]} 15... Bd7
{[%clk 0:02:51.4]} 16. Qb3 {[%clk 0:02:33.4]} 16... Rdc8 {[%clk 0:02:48.7]} 17.
Bf1 {[%clk 0:02:22.2]} 17... a4 {[%clk 0:02:47]} 18. Qb4 {[%clk 0:02:17.5]}
18... Bd8 {[%clk 0:02:44.1]} 19. Nb5 {[%clk 0:02:08.8]} 19... Bxb5 {[%clk
0:02:43.4]} 20. Qxb5 {[%clk 0:02:09.7]} 20... N8d7 {[%clk 0:02:36.6]} 21. Nd2
{[%clk 0:02:05.2]} 21... Nc5 {[%clk 0:02:32]} 22. Rc1 {[%clk 0:02:03.7]} 22...
b6 {[%clk 0:02:31.8]} 23. b4 {[%clk 0:01:59.4]} 23... axb3 {[%clk 0:02:29.7]}
24. axb3 {[%clk 0:01:59.9]} 24... Qd7 {[%clk 0:02:29.8]} 25. f3 {[%clk
0:01:39.9]} 25... h5 {[%clk 0:02:12]} 26. b4 {[%clk 0:01:27.5]} 26... Qxb5
{[%clk 0:01:59]} 27. Bxb5 {[%clk 0:01:28.4]} 27... Ncd7 {[%clk 0:01:59.4]} 28.
Rc6 {[%clk 0:01:22.6]} 28... Rxc6 {[%clk 0:01:40]} 29. dxc6 {[%clk 0:01:23.5]}
29... Nf8 {[%clk 0:01:39.8]} 30. Nc4 {[%clk 0:01:17.2]} 30... Bc7 {[%clk
0:01:36.3]} 31. Bxb6 {[%clk 0:01:14.7]} 31... Bxb6+ {[%clk 0:01:30.5]} 32. Nxb6
{[%clk 0:01:15.6]} 32... Ra7 {[%clk 0:01:28.2]} 33. Nc8 {[%clk 0:01:07.2]} 33...
Rc7 {[%clk 0:01:24.2]} 34. Nxd6 {[%clk 0:01:02.6]} 34... Ne6 {[%clk 0:01:24.5]}
35. Nf5 {[%clk 0:00:54.4]} 35... g6 {[%clk 0:01:19.7]} 36. Ne3 {[%clk
0:00:43.3]} 36... Nd4 {[%clk 0:01:19]} 37. Ba4 {[%clk 0:00:33.7]} 37... Ra7
{[%clk 0:01:18.5]} 38. Ra1 {[%clk 0:00:22]} 38... Nxc6 {[%clk 0:01:14.2]} 39. b5
{[%clk 0:00:14.4]} 39... Nd4 {[%clk 0:01:12.5]} 40. Kf2 {[%clk 0:00:10.4]} 40...
Nxb5 {[%clk 0:01:08.6]} 41. Rb1 {[%clk 0:00:06.6]} 41... Nc3 {[%clk 0:01:08]}
42. Rb8+ {[%clk 0:00:06.7]} 42... Kg7 {[%clk 0:01:08]} 43. Bb3 {[%clk
0:00:07.6]} 43... Nd7 {[%clk 0:00:54.1]} 44. Rd8 {[%clk 0:00:07]} 44... Nc5
{[%clk 0:00:53.3]} 45. Bc4 {[%clk 0:00:06.3]} 45... Ra4 {[%clk 0:00:45]} 46. g4
{[%clk 0:00:05.8]} 46... hxg4 {[%clk 0:00:44.5]} 47. hxg4 {[%clk 0:00:06.7]}
47... Nd1+ {[%clk 0:00:40.5]} 48. Nxd1 {[%clk 0:00:06.1]} 48... Rxc4 {[%clk
0:00:40.6]} 49. Ne3 {[%clk 0:00:06.6]} 49... Rc3 {[%clk 0:00:38.9]} 50. Rc8
{[%clk 0:00:05.4]} 50... Nd3+ {[%clk 0:00:38.8]} 51. Ke2 {[%clk 0:00:05.4]}
51... Nf4+ {[%clk 0:00:38.9]} 52. Kf2 {[%clk 0:00:05.4]} 52... Rxc8 {[%clk
0:00:38.6]} 53. Kg3 {[%clk 0:00:06.3]} 53... Kf6 {[%clk 0:00:37.1]} 54. g5+
{[%clk 0:00:07.2]} 54... Ke7 {[%clk 0:00:37]} 55. Nd5+ {[%clk 0:00:08.1]} 55...
Nxd5 {[%clk 0:00:36.2]} 56. exd5 {[%clk 0:00:09]} 56... Kd6 {[%clk 0:00:36.3]}
57. f4 {[%clk 0:00:09.9]} 57... exf4+ {[%clk 0:00:36.5]} 58. Kxf4 {[%clk
0:00:10.8]} 58... Kxd5 {[%clk 0:00:36.9]} 59. Kg4 {[%clk 0:00:11]} 59... Rc4+
{[%clk 0:00:36.8]} 60. Kg3 {[%clk 0:00:10.6]} 60... Ke5 {[%clk 0:00:37.1]} 61.
Kf3 {[%clk 0:00:11.5]} 61... Kf5 {[%clk 0:00:37.4]} 62. Ke3 {[%clk 0:00:12.4]}
62... Kxg5 {[%clk 0:00:37.2]} 0-1

[Event "Late-Titled-Tuesday-Blitz-May-28-2024"]
[Site "Chess.com"]
[Date "2024.05.28"]
[Round "10"]
[White "crazy_but_lazy"]
[Black "yobdc"]
[Result "1-0"]
[WhiteElo "2673"]
[BlackElo "2539"]
[TimeControl "180+1"]
[EndTime "15:55:37 PDT"]
[Termination "crazy_but_lazy won on time"]

1. d4 {[%clk 0:03:00.9]} 1... e6 {[%clk 0:02:56.4]} 2. Nf3 {[%clk 0:03:01.8]}
2... f5 {[%clk 0:02:56]} 3. g3 {[%clk 0:02:59.3]} 3... Nf6 {[%clk 0:02:56]} 4.
Bg2 {[%clk 0:02:59.7]} 4... d5 {[%clk 0:02:55.6]} 5. O-O {[%clk 0:02:59.9]} 5...
Bd6 {[%clk 0:02:56.1]} 6. c4 {[%clk 0:02:58]} 6... c6 {[%clk 0:02:56.5]} 7. Nbd2
{[%clk 0:02:57.2]} 7... O-O {[%clk 0:02:56]} 8. Ne5 {[%clk 0:02:57.6]} 8... Nbd7
{[%clk 0:02:53]} 9. Ndf3 {[%clk 0:02:54.7]} 9... Ne4 {[%clk 0:02:46.5]} 10. b3
{[%clk 0:02:41.6]} 10... Qe7 {[%clk 0:02:42.4]} 11. Nd3 {[%clk 0:02:38]} 11...
a5 {[%clk 0:02:39.6]} 12. Bf4 {[%clk 0:02:34.8]} 12... a4 {[%clk 0:02:37.2]} 13.
Bxd6 {[%clk 0:02:33.5]} 13... Nxd6 {[%clk 0:02:30.1]} 14. Nfe5 {[%clk
0:02:22.2]} 14... Nf6 {[%clk 0:02:20.2]} 15. c5 {[%clk 0:02:19.4]} 15... Nb5
{[%clk 0:02:09.5]} 16. e3 {[%clk 0:02:14.9]} 16... a3 {[%clk 0:01:42.2]} 17. Qc2
{[%clk 0:02:04.3]} 17... Bd7 {[%clk 0:01:41.4]} 18. f3 {[%clk 0:01:55.5]} 18...
Be8 {[%clk 0:01:39.2]} 19. Rae1 {[%clk 0:01:53.1]} 19... Bh5 {[%clk 0:01:38.8]}
20. h3 {[%clk 0:01:50.7]} 20... g5 {[%clk 0:01:34.3]} 21. g4 {[%clk 0:01:49.1]}
21... Bg6 {[%clk 0:01:33.4]} 22. Nxg6 {[%clk 0:01:45.8]} 22... hxg6 {[%clk
0:01:33.3]} 23. Ne5 {[%clk 0:01:45.6]} 23... Kg7 {[%clk 0:01:33.3]} 24. Rf2
{[%clk 0:01:30.5]} 24... Nd7 {[%clk 0:01:30.9]} 25. Nxd7 {[%clk 0:01:10.3]}
25... Qxd7 {[%clk 0:01:31.8]} 26. Bf1 {[%clk 0:01:10.8]} 26... Nc7 {[%clk
0:01:31.5]} 27. Bd3 {[%clk 0:01:08.2]} 27... Rh8 {[%clk 0:01:30.7]} 28. Rh2
{[%clk 0:01:07.1]} 28... Rh4 {[%clk 0:01:26.3]} 29. Qg2 {[%clk 0:01:05.5]} 29...
Rah8 {[%clk 0:01:26.1]} 30. gxf5 {[%clk 0:01:03.7]} 30... exf5 {[%clk
0:01:23.5]} 31. Qxg5 {[%clk 0:01:03]} 31... Ne6 {[%clk 0:00:55.2]} 32. Qg3
{[%clk 0:01:01.4]} 32... Qc7 {[%clk 0:00:53.4]} 33. Qxc7+ {[%clk 0:00:57.2]}
33... Nxc7 {[%clk 0:00:53.2]} 34. Kg2 {[%clk 0:00:57.7]} 34... Ne6 {[%clk
0:00:51.8]} 35. f4 {[%clk 0:00:42.6]} 35... Kf6 {[%clk 0:00:50.5]} 36. b4 {[%clk
0:00:42]} 36... R4h5 {[%clk 0:00:23.6]} 37. Rf1 {[%clk 0:00:34.5]} 37... Ra8
{[%clk 0:00:22.4]} 38. Kg3 {[%clk 0:00:23.8]} 38... g5 {[%clk 0:00:18.6]} 39.
fxg5+ {[%clk 0:00:20.7]} 39... Rxg5+ {[%clk 0:00:19.5]} 40. Kf3 {[%clk
0:00:20.7]} 40... Ra4 {[%clk 0:00:19.6]} 41. Rb1 {[%clk 0:00:20.1]} 41... Rg7
{[%clk 0:00:09]} 42. h4 {[%clk 0:00:20.3]} 42... f4 {[%clk 0:00:09.3]} 43. h5
{[%clk 0:00:17.8]} 43... Rg3+ {[%clk 0:00:07.8]} 44. Kf2 {[%clk 0:00:16.8]}
44... Rxe3 {[%clk 0:00:07.8]} 45. h6 {[%clk 0:00:16.1]} 45... Ng5 {[%clk
0:00:01.6]} 46. Bc2 {[%clk 0:00:15]} 46... Nf7 {[%clk 0:00:01.3]} 47. Bxa4
{[%clk 0:00:14.4]} 47... Rd3 {[%clk 0:00:01]} 48. Re1 {[%clk 0:00:12.6]} 48...
Rxd4 {[%clk 0:00:00.9]} 49. h7 {[%clk 0:00:12.2]} 49... Nh8 {[%clk 0:00:01]} 50.
Re8 {[%clk 0:00:11.5]} 50... Rd2+ {[%clk 0:00:01.2]} 51. Kg1 {[%clk 0:00:12.2]}
51... Rg2+ {[%clk 0:00:01]} 52. Rxg2 {[%clk 0:00:12.2]} 1-0

[Event "Late-Titled-Tuesday-Blitz-May-28-2024"]
[Site "Chess.com"]
[Date "2024.05.28"]
[Round "10"]
[White "Quattroporte300"]
[Black "ReadySkate"]
[Result "0-1"]
[WhiteElo "2425"]
[BlackElo "2700"]
[TimeControl "180+1"]
[EndTime "15:55:38 PDT"]
[Termination "ReadySkate won on time"]

1. e4 {[%clk 0:03:00.9]} 1... c5 {[%clk 0:02:59.1]} 2. Nc3 {[%clk 0:03:00.4]}
2... e6 {[%clk 0:02:59.4]} 3. g3 {[%clk 0:03:00.3]} 3... Nc6 {[%clk 0:02:58.5]}
4. Bg2 {[%clk 0:03:00.1]} 4... Nf6 {[%clk 0:02:57.8]} 5. Nge2 {[%clk 0:02:57.3]}
5... d5 {[%clk 0:02:56.8]} 6. exd5 {[%clk 0:02:57.2]} 6... exd5 {[%clk
0:02:57.7]} 7. d4 {[%clk 0:02:57.4]} 7... h6 {[%clk 0:02:57.8]} 8. O-O {[%clk
0:02:56.7]} 8... c4 {[%clk 0:02:58.3]} 9. Nf4 {[%clk 0:02:49.8]} 9... Bd6 {[%clk
0:02:42.5]} 10. Re1+ {[%clk 0:02:47.2]} 10... Kf8 {[%clk 0:02:41.9]} 11. Nfxd5
{[%clk 0:02:45.6]} 11... Bg4 {[%clk 0:02:36.5]} 12. Qd2 {[%clk 0:02:28.5]} 12...
Rc8 {[%clk 0:02:19.1]} 13. Nxf6 {[%clk 0:02:14.6]} 13... Qxf6 {[%clk 0:02:20]}
14. Ne4 {[%clk 0:02:14.8]} 14... Qd8 {[%clk 0:02:12.7]} 15. Nxd6 {[%clk
0:02:15.2]} 15... Qxd6 {[%clk 0:02:13.6]} 16. c3 {[%clk 0:02:15.8]} 16... g5
{[%clk 0:02:10.9]} 17. h3 {[%clk 0:02:10.3]} 17... Bh5 {[%clk 0:02:09.6]} 18. b3
{[%clk 0:01:55.7]} 18... Na5 {[%clk 0:01:57.2]} 19. Qc2 {[%clk 0:01:24.5]} 19...
Kg7 {[%clk 0:01:53.9]} 20. b4 {[%clk 0:01:20.8]} 20... Nc6 {[%clk 0:01:53.4]}
21. a4 {[%clk 0:01:16.2]} 21... Rhe8 {[%clk 0:01:49.5]} 22. Be3 {[%clk
0:01:16.4]} 22... b6 {[%clk 0:01:45.8]} 23. a5 {[%clk 0:01:14]} 23... Ne7 {[%clk
0:01:44.8]} 24. axb6 {[%clk 0:01:13.1]} 24... axb6 {[%clk 0:01:43.7]} 25. Bd2
{[%clk 0:01:01.9]} 25... Nd5 {[%clk 0:01:39.4]} 26. Qf5 {[%clk 0:00:57.5]} 26...
Nf6 {[%clk 0:01:28.5]} 27. Qb5 {[%clk 0:00:37.5]} 27... Bg6 {[%clk 0:01:25.9]}
28. Rxe8 {[%clk 0:00:34.6]} 28... Rxe8 {[%clk 0:01:24.3]} 29. Qxc4 {[%clk
0:00:33.1]} 29... Ne4 {[%clk 0:01:24.3]} 30. Be1 {[%clk 0:00:24.4]} 30... Qf6
{[%clk 0:01:15.5]} 31. Rd1 {[%clk 0:00:22.5]} 31... h5 {[%clk 0:01:10.4]} 32. d5
{[%clk 0:00:22.5]} 32... Nd6 {[%clk 0:01:09.6]} 33. Qd4 {[%clk 0:00:22.4]} 33...
Qxd4 {[%clk 0:01:09.2]} 34. cxd4 {[%clk 0:00:22.7]} 34... Be4 {[%clk 0:01:07.2]}
35. Bd2 {[%clk 0:00:20.6]} 35... Bxg2 {[%clk 0:01:06.3]} 36. Kxg2 {[%clk
0:00:21.5]} 36... f6 {[%clk 0:01:06.8]} 37. Rc1 {[%clk 0:00:17.3]} 37... Re2
{[%clk 0:01:02.7]} 38. Rc6 {[%clk 0:00:14.6]} 38... Nf5 {[%clk 0:01:00.5]} 39.
Bc3 {[%clk 0:00:08.4]} 39... g4 {[%clk 0:00:50.2]} 40. hxg4 {[%clk 0:00:06.1]}
40... hxg4 {[%clk 0:00:51.1]} 41. d6 {[%clk 0:00:05.7]} 41... Kf7 {[%clk
0:00:50.8]} 42. d7 {[%clk 0:00:05.6]} 42... Ke7 {[%clk 0:00:46]} 43. d5 {[%clk
0:00:05.8]} 43... Kxd7 {[%clk 0:00:42.5]} 44. Rxf6 {[%clk 0:00:06.3]} 44... Ne3+
{[%clk 0:00:42.5]} 45. Kh2 {[%clk 0:00:05.8]} 45... Nxd5 {[%clk 0:00:43]} 46.
Rf7+ {[%clk 0:00:05.5]} 46... Ke8 {[%clk 0:00:40.8]} 47. Rg7 {[%clk 0:00:03.7]}
47... Nxc3 {[%clk 0:00:40.6]} 48. Rxg4 {[%clk 0:00:03.8]} 48... Rxf2+ {[%clk
0:00:41.1]} 49. Kh3 {[%clk 0:00:03.9]} 49... Rb2 {[%clk 0:00:41.7]} 50. Rc4
{[%clk 0:00:04]} 50... Nd5 {[%clk 0:00:41.8]} 51. Re4+ {[%clk 0:00:02]} 51...
Kd7 {[%clk 0:00:41.3]} 52. g4 {[%clk 0:00:01.9]} 52... Rxb4 {[%clk 0:00:39.9]}
53. Re5 {[%clk 0:00:02.3]} 53... Kd6 {[%clk 0:00:40]} 54. Re8 {[%clk 0:00:02.2]}
54... Nf6 {[%clk 0:00:38.2]} 55. Rd8+ {[%clk 0:00:02.5]} 55... Ke7 {[%clk
0:00:38.4]} 56. Rb8 {[%clk 0:00:01.9]} 56... Nxg4 {[%clk 0:00:37.5]} 57. Rb7+
{[%clk 0:00:02.6]} 57... Ke6 {[%clk 0:00:37.3]} 58. Rb8 {[%clk 0:00:03.2]} 58...
Ne5 {[%clk 0:00:36.8]} 0-1

[Event "Late-Titled-Tuesday-Blitz-May-28-2024"]
[Site "Chess.com"]
[Date "2024.05.28"]
[Round "10"]
[White "BogdanDeac"]
[Black "GMG"]
[Result "1-0"]
[WhiteElo "3062"]
[BlackElo "2807"]
[TimeControl "180+1"]
[EndTime "15:55:40 PDT"]
[Termination "BogdanDeac won on time"]

1. e4 {[%clk 0:03:00.9]} 1... c5 {[%clk 0:03:00]} 2. Nf3 {[%clk 0:03:00.8]} 2...
Nc6 {[%clk 0:03:00.6]} 3. Bb5 {[%clk 0:02:59.5]} 3... e6 {[%clk 0:03:00.6]} 4.
O-O {[%clk 0:02:59.1]} 4... Nge7 {[%clk 0:03:00]} 5. Re1 {[%clk 0:02:59.6]} 5...
b6 {[%clk 0:03:00]} 6. b3 {[%clk 0:02:48.3]} 6... Bb7 {[%clk 0:02:55.7]} 7. Bb2
{[%clk 0:02:47.7]} 7... Ng6 {[%clk 0:02:34.1]} 8. c3 {[%clk 0:02:36.4]} 8... a6
{[%clk 0:02:34]} 9. Bf1 {[%clk 0:02:35.7]} 9... d5 {[%clk 0:01:59.8]} 10. exd5
{[%clk 0:02:33.6]} 10... Qxd5 {[%clk 0:01:57.1]} 11. d4 {[%clk 0:02:34.1]} 11...
cxd4 {[%clk 0:01:53.1]} 12. cxd4 {[%clk 0:02:34]} 12... Bb4 {[%clk 0:01:53.7]}
13. Re3 {[%clk 0:02:32.8]} 13... Rd8 {[%clk 0:01:46.4]} 14. a3 {[%clk
0:02:26.9]} 14... Be7 {[%clk 0:01:46.8]} 15. Nc3 {[%clk 0:02:26.3]} 15... Qd7
{[%clk 0:01:41.8]} 16. Na4 {[%clk 0:02:21.9]} 16... b5 {[%clk 0:01:39.7]} 17.
Nc3 {[%clk 0:02:18.2]} 17... O-O {[%clk 0:01:28.9]} 18. Ne4 {[%clk 0:02:12.3]}
18... f5 {[%clk 0:01:15.7]} 19. Ned2 {[%clk 0:02:11.8]} 19... Bf6 {[%clk
0:01:12.5]} 20. Rc1 {[%clk 0:01:25.9]} 20... Nf4 {[%clk 0:00:58.7]} 21. g3
{[%clk 0:01:00.3]} 21... Nd5 {[%clk 0:00:58.2]} 22. Re1 {[%clk 0:00:58.4]} 22...
g5 {[%clk 0:00:55.4]} 23. Bg2 {[%clk 0:00:31.7]} 23... g4 {[%clk 0:00:39.9]} 24.
Ne5 {[%clk 0:00:31.5]} 24... Nxe5 {[%clk 0:00:40.3]} 25. dxe5 {[%clk 0:00:31.7]}
25... Bg5 {[%clk 0:00:40.9]} 26. Rc2 {[%clk 0:00:27.8]} 26... Ne7 {[%clk
0:00:30.3]} 27. Bxb7 {[%clk 0:00:26.7]} 27... Qxb7 {[%clk 0:00:31.2]} 28. Qe2
{[%clk 0:00:24.4]} 28... Rc8 {[%clk 0:00:17.9]} 29. Nf1 {[%clk 0:00:20.6]} 29...
Rxc2 {[%clk 0:00:17.1]} 30. Qxc2 {[%clk 0:00:21.5]} 30... Rc8 {[%clk 0:00:17.1]}
31. Qe2 {[%clk 0:00:21.2]} 31... Nd5 {[%clk 0:00:16.7]} 32. Bd4 {[%clk
0:00:19.2]} 32... Qc6 {[%clk 0:00:15.3]} 33. a4 {[%clk 0:00:15.6]} 33... Qc2
{[%clk 0:00:14]} 34. axb5 {[%clk 0:00:15.5]} 34... Qxe2 {[%clk 0:00:14.3]} 35.
Rxe2 {[%clk 0:00:15.6]} 35... axb5 {[%clk 0:00:14.5]} 36. Ra2 {[%clk 0:00:12.8]}
36... Rc1 {[%clk 0:00:09.8]} 37. Ra6 {[%clk 0:00:12.2]} 37... Kf7 {[%clk
0:00:09.4]} 38. Ra7+ {[%clk 0:00:12.3]} 38... Kg6 {[%clk 0:00:05.9]} 39. Ra6
{[%clk 0:00:11.8]} 39... Rd1 {[%clk 0:00:06.3]} 40. Bc5 {[%clk 0:00:09.9]} 40...
Kf7 {[%clk 0:00:05.6]} 41. Ra7+ {[%clk 0:00:09.8]} 41... Ke8 {[%clk 0:00:04.4]}
42. Rxh7 {[%clk 0:00:08.3]} 42... Nc3 {[%clk 0:00:03.2]} 43. h4 {[%clk
0:00:05.2]} 43... Bd8 {[%clk 0:00:01]} 44. h5 {[%clk 0:00:04.7]} 44... Ne4
{[%clk 0:00:01]} 45. Be3 {[%clk 0:00:04.2]} 45... Ng5 {[%clk 0:00:01]} 46. Rh8+
{[%clk 0:00:04.5]} 1-0

[Event "Late-Titled-Tuesday-Blitz-May-28-2024"]
[Site "Chess.com"]
[Date "2024.05.28"]
[Round "10"]
[White "Pig-filth"]
[Black "N_Mullodzhanov"]
[Result "1-0"]
[WhiteElo "2380"]
[BlackElo "2479"]
[TimeControl "180+1"]
[EndTime "15:55:40 PDT"]
[Termination "Pig-filth won by checkmate"]

1. d4 {[%clk 0:03:00.9]} 1... Nf6 {[%clk 0:02:59.7]} 2. Bg5 {[%clk 0:02:59.9]}
2... Ne4 {[%clk 0:02:54.1]} 3. Bf4 {[%clk 0:02:59.4]} 3... c5 {[%clk 0:02:54.4]}
4. f3 {[%clk 0:02:58.2]} 4... Nf6 {[%clk 0:02:51.6]} 5. dxc5 {[%clk 0:02:56.8]}
5... Qa5+ {[%clk 0:02:46.6]} 6. Nc3 {[%clk 0:02:53.1]} 6... Qxc5 {[%clk
0:02:45.5]} 7. e4 {[%clk 0:02:53.8]} 7... e5 {[%clk 0:02:43.8]} 8. Bg5 {[%clk
0:02:50.1]} 8... Be7 {[%clk 0:02:39.2]} 9. Qd2 {[%clk 0:02:44.2]} 9... Nc6
{[%clk 0:02:33]} 10. Bxf6 {[%clk 0:02:39.9]} 10... Bxf6 {[%clk 0:02:32]} 11. Nd5
{[%clk 0:02:40.5]} 11... Bd8 {[%clk 0:02:27.9]} 12. Ne2 {[%clk 0:02:30.3]} 12...
O-O {[%clk 0:02:11.2]} 13. b4 {[%clk 0:02:05]} 13... Qd6 {[%clk 0:02:02.4]} 14.
Ng3 {[%clk 0:02:04.3]} 14... g6 {[%clk 0:01:53]} 15. Qh6 {[%clk 0:01:47.8]}
15... Qe6 {[%clk 0:01:10.6]} 16. c3 {[%clk 0:01:47.9]} 16... Ne7 {[%clk
0:01:02.1]} 17. Nh5 {[%clk 0:01:35.7]} 17... gxh5 {[%clk 0:00:19.6]} 18. Nf6+
{[%clk 0:01:34.6]} 18... Qxf6 {[%clk 0:00:19.7]} 19. Qxf6 {[%clk 0:01:35.5]}
19... Ng6 {[%clk 0:00:15.3]} 20. Qd6 {[%clk 0:01:26.9]} 20... Be7 {[%clk
0:00:15.2]} 21. Qd2 {[%clk 0:01:18.5]} 21... d6 {[%clk 0:00:14.7]} 22. Bc4
{[%clk 0:01:15]} 22... Kg7 {[%clk 0:00:11.6]} 23. g3 {[%clk 0:01:06.2]} 23... h4
{[%clk 0:00:10.7]} 24. Bd5 {[%clk 0:00:50.8]} 24... a5 {[%clk 0:00:06.2]} 25. a4
{[%clk 0:00:45.7]} 25... Ra7 {[%clk 0:00:04.6]} 26. Qe3 {[%clk 0:00:42.3]} 26...
Ra8 {[%clk 0:00:04.3]} 27. b5 {[%clk 0:00:37.1]} 27... Be6 {[%clk 0:00:01.6]}
28. Bxe6 {[%clk 0:00:25.2]} 28... fxe6 {[%clk 0:00:02.5]} 29. Qb6 {[%clk
0:00:20.1]} 29... Rxf3 {[%clk 0:00:01.4]} 30. Qxb7 {[%clk 0:00:19.2]} 30... Re8
{[%clk 0:00:01.7]} 31. Rf1 {[%clk 0:00:17.9]} 31... Re3+ {[%clk 0:00:01.6]} 32.
Kd2 {[%clk 0:00:18.3]} 32... Rxe4 {[%clk 0:00:01]} 33. Qxe4 {[%clk 0:00:17.3]}
33... d5 {[%clk 0:00:01.9]} 34. Qe2 {[%clk 0:00:16.6]} 34... e4 {[%clk
0:00:01.9]} 35. gxh4 {[%clk 0:00:16.5]} 35... Bxh4 {[%clk 0:00:02.1]} 36. Rg1
{[%clk 0:00:17.4]} 36... Bf6 {[%clk 0:00:02]} 37. Qg4 {[%clk 0:00:17.9]} 37...
Rc8 {[%clk 0:00:02.2]} 38. h4 {[%clk 0:00:17.7]} 38... Bxc3+ {[%clk 0:00:02.1]}
39. Ke2 {[%clk 0:00:18.2]} 39... Be5 {[%clk 0:00:01.6]} 40. h5 {[%clk
0:00:18.3]} 40... Rc2+ {[%clk 0:00:01.8]} 41. Kd1 {[%clk 0:00:18.2]} 41... Rc4
{[%clk 0:00:01]} 42. hxg6 {[%clk 0:00:18.4]} 42... h6 {[%clk 0:00:01.3]} 43. Rf1
{[%clk 0:00:17.4]} 43... Bxa1 {[%clk 0:00:01]} 44. Rf7+ {[%clk 0:00:18.3]} 44...
Kg8 {[%clk 0:00:01.5]} 45. Qxe6 {[%clk 0:00:18]} 45... Rd4+ {[%clk 0:00:02]} 46.
Ke2 {[%clk 0:00:17.5]} 46... Rd2+ {[%clk 0:00:01]} 47. Kxd2 {[%clk 0:00:17]}
47... e3+ {[%clk 0:00:00.7]} 48. Ke2 {[%clk 0:00:16.9]} 48... d4 {[%clk
0:00:00.8]} 49. Qe8# {[%clk 0:00:17.8]} 1-0